Cogmind - Beta 17.1 @@@ ROGUE MODE // 2026.09.06 @ 01:24:50 Player: cptwinky Result: Escaped! Performance ------------- Evolutions (9) 4500 Regions Visited (22) 4400 Robots Destroyed (385) 1925 Value Destroyed (16906) 16906 Prototype IDs (29) 580 Alien Tech Used (2) 400 Bonus (34260) 34260 TOTAL SCORE: 62971 Bonus ------- Triggered High Security 500 High Alert Combat Kills 8265 Follower Combat Kills 5437 Prayed to X0-1V1 5000 Major X0-1V1 Interference 11650 Met Data Miner 300 Scanned by Researcher 500 Win 3000 Friendly Fire -392 Cogmind --------- Core Integrity 820/1420 Matter 488/1000 Energy 1806/1830 System Corruption 4% Temperature Cool (15) Movement Treading (150) Location To Epsilon Eridani Parts ------- > --- POWER (3) -------- Quantum Reactor Light Quantum Reactor Light Quantum Reactor > --- PROPULSION (6) --- Advanced Heavy Treads Biometal Heavy Treads Advanced Heavy Siege Treads > --- UTILITY (13) ----- Experimental Coolant Injector High-capacity Storage Unit Spectral Analyzer Advanced Target Analyzer Experimental Core Analyzer Experimental Phase Shifter Wyrmplate Advanced Shield Generator Advanced Hacking Suite X0-1V1's Piety Tracker > --- WEAPON (4) ------- Enhanced Nova Cannon Hypervelocity Mass Driver Heavy Linear Accelerator > --- INVENTORY (20) --- Graviton Reactor Quantum Reactor Light Quantum Reactor Centrium Heavy Treads Biometal Heavy Treads Matter Compressor (250) Precision Matter Filter Long-range Tractor Beam Compact HERF Cannon Compact HERF Cannon Core Cannon Hypervelocity Mass Driver Gamma Bomb Array Fusion Bomb Launcher Containment Facilitator Phasing Sabre Peak State ------------ > --- POWER ------------ Light Quantum Reactor Light Quantum Reactor Improved Quantum Reactor > --- PROPULSION ------- Advanced Heavy Treads Biometal Heavy Treads Advanced Heavy Siege Treads > --- UTILITY ---------- Experimental Coolant Injector High-capacity Storage Unit Spectral Analyzer Advanced Target Analyzer Experimental Core Analyzer Wyrmplate Advanced Shield Generator Phase Redirector Advanced Hacking Suite X0-1V1's Piety Tracker > --- WEAPON ----------- Enhanced Nova Cannon Hypervelocity Mass Driver Hypervelocity Mass Driver Fusion Bomb Launcher > --- INVENTORY -------- Graviton Reactor Quantum Reactor Centrium Heavy Treads Biometal Heavy Treads Matter Compressor Precision Matter Filter Advanced Shield Generator Improved Hacking Suite Long-range Tractor Beam Compact HERF Cannon Compact HERF Cannon Core Cannon Railgun Gamma Bomb Array Containment Facilitator Phasing Sabre [Rating: 253] Favorites ----------- Power Neutrino Core Engine Cooled Ion Engine Power Core Neutrino Core Reactor Light Quantum Reactor Propulsion Advanced Treads Treads Advanced Treads Utility High-capacity Storage Unit Device X0-1V1's Piety Tracker Storage High-capacity Storage Unit Processor Advanced Targeting Computer Hackware Hacking Suite Protection Wyrmplate Artifact Phase Redirector Weapon Heavy Assault Cannon Energy Gun Wave Gun Energy Cannon Beam Cannon Ballistic Gun Autogun Ballistic Cannon Heavy Assault Cannon Launcher Gamma Bomb Array Impact Weapon Heavy Hammer Slashing Weapon Ripper Build | -11 -10 -10 -9 -9 -8 -8 -8 -8 -6 -6 -6 -6 -5 -5 -4 -4 -4 -3 -3 -2 -2 -1 ------- Run | Yrd Mat Min Mat Min Mat Sto Rec Scr Fac Low Low Dat Pro Fac Fac Upp Upp Res Tes Res Qua Acc Slots Evolved 18 | . . . 2 . 2 . . . 4 . . . . 2 2 . . 2 . 2 . 2 Power 1 | . . . . . . . . . . . . . . . . . . 1 . . . . Propulsion 3 | . . . . . 1 . . . . . . . . 2 . . . . . . . . Utility 12 | . . . 2 . . . . . 4 . . . . . 1 . . 1 . 2 . 2 Weapon 2 | . . . . . 1 . . . . . . . . . 1 . . . . . . . Parts Attached 184 | 6 8 2 20 1 15 14 7 3 9 4 1 . 4 14 1 6 . 35 6 5 7 16 Power 23 | 1 1 . 4 . 2 1 1 . . . . . 1 3 . . . 3 1 1 2 2 Engine 10 | 1 1 . 3 . 2 1 1 . . . . . . 1 . . . . . . . . Core 4 | . . . 1 . . . . . . . . . . 2 . . . 1 . . . . Reactor 9 | . . . . . . . . . . . . . 1 . . . . 2 1 1 2 2 Propulsion 55 | 2 . 1 7 1 5 8 1 2 4 . . . . 3 . 2 . 9 3 2 2 3 Treads 55 | 2 . 1 7 1 5 8 1 2 4 . . . . 3 . 2 . 9 3 2 2 3 Leg . | . . . . . . . . . . . . . . . . . . . . . . . Wheel . | . . . . . . . . . . . . . . . . . . . . . . . Hover . | . . . . . . . . . . . . . . . . . . . . . . . Flight . | . . . . . . . . . . . . . . . . . . . . . . . Utility 66 | 1 5 1 7 . 4 3 4 . 4 2 1 . 1 5 1 3 . 13 1 1 2 7 Device 28 | . 2 1 2 . 1 1 . . 2 1 . . . 3 1 1 . 6 1 . . 6 Storage 6 | 1 1 . 1 . 1 . . . 1 . . . . . . . . 1 . . . . Processor 11 | . 1 . 1 . . . . . 1 1 . . . 1 . 1 . 4 . 1 . . Hackware 7 | . . . 2 . . . 3 . . . . . . . . . . . . . 2 . Protection 13 | . 1 . 1 . 2 2 1 . . . 1 . 1 1 . 1 . 2 . . . . Artifact 1 | . . . . . . . . . . . . . . . . . . . . . . 1 Weapon 40 | 2 2 . 2 . 4 2 1 1 1 2 . . 2 3 . 1 . 10 1 1 1 4 Energy Gun 6 | 2 . . . . 1 . . . 1 . . . . 1 . 1 . . . . . . Energy Cannon 8 | . 2 . . . . . . . . 1 . . . . . . . 2 . . . 3 Ballistic Gun 4 | . . . . . 1 . . . . . . . . 1 . . . 2 . . . . Ballistic Cannon 11 | . . . 2 . 2 . . . . . . . . 1 . . . 3 1 1 . 1 Launcher 8 | . . . . . . 2 1 1 . . . . 1 . . . . 3 . . . . Special Weapon . | . . . . . . . . . . . . . . . . . . . . . . . Impact Weapon . | . . . . . . . . . . . . . . . . . . . . . . . Slashing Weapon 3 | . . . . . . . . . . 1 . . 1 . . . . . . . 1 . Piercing Weapon . | . . . . . . . . . . . . . . . . . . . . . . . Special Melee Weapon . | . . . . . . . . . . . . . . . . . . . . . . . Unidentified Prototypes 16 | . 1 . . . 2 2 . . . . . . . 1 . . . 7 1 . . 2 Corrupted Parts 4 | . . . . . . . . . . . . . 1 1 . . . 1 1 . . . System Corruption 22 | . . . . . . . . . . . . . 6 1 . . . 5 10 . . . Parts Lost 33 | . . . 5 . 1 2 . 3 . . . . 3 2 . 1 . 10 2 1 . 3 Power 6 | . . . 2 . . . . . . . . . 1 . . . . 2 . . . 1 Propulsion 10 | . . . 1 . 1 . . 1 . . . . . 1 . . . 5 1 . . . Utility 10 | . . . 2 . . 2 . 1 . . . . 2 . . 1 . . . . . 2 Weapon 7 | . . . . . . . . 1 . . . . . 1 . . . 3 1 1 . . Highest Loss Streak 4 | . . . 2 . 1 2 . 2 . . . . 3 1 . 1 . 4 1 1 . 2 To Critical Strikes 2 | . . . . . . . . . . . . . . 1 . . . 1 . . . . Average Backups 16 | 4 13 14 16 17 18 19 19 17 6 8 9 15 15 18 20 18 19 18 19 19 17 16 Power . | . 1 1 . 1 . . 1 . . . . . . . 1 1 1 1 1 1 1 2 Propulsion 4 | 2 4 3 4 4 4 5 4 3 4 6 7 7 7 6 6 4 4 1 . 1 1 2 Utility 6 | . 2 6 5 7 9 9 8 7 2 2 2 3 3 5 6 5 6 5 8 7 7 4 Weapon 5 | . 4 4 5 4 3 3 3 4 . . . 5 5 6 7 7 8 9 8 7 6 6 Tool/Special . | . . . . . . . . . . . . . . . . . . . . . . . Unused Backups 67 | . 4 1 10 6 10 4 . 7 2 . . . . . . 1 . 8 . 1 2 11 Power 7 | . . . . 1 . . . 1 . . . . . . . . . 1 . . . 4 Propulsion 17 | . 2 . . 3 4 3 . . 2 . . . . . . . . . . . . 3 Utility 12 | . . . . . 1 . . 4 . . . . . . . . . 2 . 1 2 2 Weapon 28 | . 2 1 10 1 5 1 . 1 . . . . . . . 1 . 5 . . . 1 Tool/Special 3 | . . . . 1 . . . 1 . . . . . . . . . . . . . 1 Average Slot Usage (%) 82 | . 94 100 88 70 84 85 91 87 39 64 84 87 87 86 90 98 100 75 68 69 73 72 Engine 4 | . 13 12 9 8 8 8 8 7 . . . . . . . . . . . . . . Core 1 | . . . . . . . . . . . . . . 4 10 10 10 6 . . . . Reactor 1 | . . . . . . . . . . . . . 1 . . . . 2 6 8 10 10 Treads 27 | . 26 33 30 26 32 33 33 32 24 25 25 25 25 29 30 30 30 26 23 20 14 11 Device 8 | . 3 8 7 8 4 2 7 7 8 13 18 18 15 10 10 13 15 8 9 11 4 11 Storage 6 | . 14 12 10 8 8 8 8 7 4 6 6 6 6 5 5 5 5 4 4 4 4 3 Processor 5 | . 4 . . . . . . . 1 8 14 12 12 7 10 10 10 8 9 11 12 11 Hackware 3 | . . . 11 8 8 5 . . . . . . . . . . . . . . 7 4 Protection 6 | . 2 4 7 . 6 10 15 15 . . . 6 7 11 10 9 10 4 4 4 4 3 Energy Gun 3 | . 3 . . . 2 . . . . 6 6 6 6 9 10 14 15 5 . . . . Energy Cannon 3 | . 24 26 . . . . . . . 1 6 6 6 2 . . . . . . . 1 Ballistic Gun 2 | . . . . . 4 8 8 7 . . . . . 2 5 5 5 3 . . 2 . Ballistic Cannon 4 | . . . 9 8 8 7 8 7 . . . . . . . . . 3 8 7 7 7 Peak Build Rating 253 | 6 20 12 32 25 37 44 42 40 36 49 59 59 68 89 93 102 101 166 177 196 210 253 Average Rating 77 | 5 8 10 22 23 34 38 40 38 28 40 51 59 59 75 87 98 101 149 167 186 201 239 On Entrance 67 | . 6 8 12 23 23 36 41 39 11 36 49 59 59 49 87 88 101 101 156 175 189 210 Avg Prop Armor Cover (%) 38 | . . . . . . . . 39 44 . . . . . . . . 3 . . . . Naked Turns . | . . . . . . . . . . . . . . . . . . . . . . . Heaviest Build 220 | 11 34 34 69 72 87 86 77 77 46 62 69 69 87 105 97 103 103 179 176 182 201 220 Greatest Support 225 | 40 40 60 60 60 80 94 86 86 88 88 88 88 88 136 136 136 136 156 189 189 210 225 Greatest Overweight (x) 1 | . 1 . 1 1 1 1 . 1 . . 1 1 . . . . . 1 . . . 1 Average Overweight (x) . | . . . . 1 . . . . . . . . . . . . . . . . . . Largest Inventory Capacity 20 | 8 15 15 20 20 20 20 20 20 20 20 20 20 20 20 20 20 20 20 20 20 20 20 Average Capacity 19 | 7 14 15 19 20 20 20 20 19 16 20 20 20 20 20 20 20 20 20 20 20 20 20 Most Carried 20 | 7 15 15 20 20 20 20 20 19 7 9 15 15 18 20 20 20 19 20 20 20 20 20 Average Carried 17 | 4 13 14 19 19 19 19 19 17 6 8 9 15 16 18 19 18 19 18 19 19 19 19 Final Capacity 20 | 8 15 15 20 20 20 20 20 5 20 20 20 20 20 20 20 20 20 20 20 20 20 20 Final Carried 20 | 7 15 15 20 20 20 19 18 5 7 9 15 15 15 20 20 19 19 20 20 20 20 19 Class Distribution -------------------- 19% | Tank 18% | Mutant 17% | Scavenger-Tank 16% | Scavenger-Mutant 14% | Scavenger-Gunner 5% | Derelict-Mutant 4% | Hacker-Mutant Dominant Class ---------------- Mutant | -10/Materials Mutant | -10/Mines Scavenger-Mutant | -9/Materials Scavenger-Mutant | -9/Mines Scavenger-Tank | -8/Materials Tank | -8/Storage Tank | -8/Recycling Tank | -8/Scraptown Mutant | -6/Factory Mutant | -6/Lower Caves Derelict-Mutant | -6/Lower Caves Derelict-Mutant | -6/Data Miner Derelict-Mutant | -5/Proximity Caves Scavenger-Tank | -5/Factory Scavenger-Tank | -4/Factory Scavenger-Gunner | -4/Upper Caves Scavenger-Gunner | -4/Upper Caves Scavenger-Gunner | -3/Research Scavenger-Mutant | -3/Testing Scavenger-Mutant | -2/Research Hacker-Tank | -2/Quarantine Tank | -1/Access Resources | -11 -10 -10 -9 -9 -8 -8 -8 -8 -6 -6 -6 -6 -5 -5 -4 -4 -4 -3 -3 -2 -2 -1 ----------- Run | Yrd Mat Min Mat Min Mat Sto Rec Scr Fac Low Low Dat Pro Fac Fac Upp Upp Res Tes Res Qua Acc Matter Collected 12404 | 240 339 20 1472 1174 1072 1305 160 20 . 508 10 . 48 104 68 305 26 2582 1312 361 41 1237 Remotely 2442 | . . . . . . 182 . . . . . . . . 68 . . 652 947 . . 593 Salvage Created 18198 | 232 325 123 606 168 1124 1442 172 253 . 229 230 . 205 273 68 495 21 7489 2061 719 . 1963 Parts 825 | 15 22 12 53 7 62 79 16 17 . 4 4 . 6 10 1 13 2 307 82 23 . 90 Haulers Intercepted 16 | . 2 . 3 . 5 4 . . . . . . . . . . . 1 1 . . . Recyclers Shooed 6 | . 1 . . 1 2 1 . . . . . . . . . . . 1 . . . . Parts Field Recycled . | . . . . . . . . . . . . . . . . . . . . . . . Retrieved Matter . | . . . . . . . . . . . . . . . . . . . . . . . Parts Self-Destructed 42 | . . . . . . . . . . 3 12 . 13 . . 14 . . . . . . Prevented 16 | . . . . . . . . . . 1 3 . 9 . . 3 . . . . . . Parts Restored . | . . . . . . . . . . . . . . . . . . . . . . . Kills | -11 -10 -10 -9 -9 -8 -8 -8 -8 -6 -6 -6 -6 -5 -5 -4 -4 -4 -3 -3 -2 -2 -1 ------- Run | Yrd Mat Min Mat Min Mat Sto Rec Scr Fac Low Low Dat Pro Fac Fac Upp Upp Res Tes Res Qua Acc Combat Hostiles Destroyed 280 | . 4 8 27 3 23 30 3 5 . . 3 . 4 7 1 10 . 95 23 7 . 27 Melee 1 | . . . . . . . . . . . . . . . . . . 1 . . . . Guns 26 | . . . . . 2 3 . . . . 2 . 1 4 1 9 . 4 . . . . Cannons 157 | . 3 8 27 3 21 24 3 5 . . 1 . 3 1 . . . 19 17 3 . 19 AOE 61 | . . . . . . 3 . . . . . . . . . . . 45 5 1 . 7 Classes Destroyed 27 | 2 5 1 2 1 2 1 . 4 . . . . . . . 1 . 5 1 . . 2 Worker 23 | . . . 3 . . 2 . . . . . . . . . . . 10 4 . . 4 Builder 19 | . 1 . . . 3 5 . . . . . . . . . . . 3 2 . . 5 Tunneler 7 | 6 . . . . . . . . . . . . . . . . . 1 . . . . Hauler 16 | . 2 . 3 . 5 4 . . . . . . . . . . . 1 1 . . . Recycler 7 | 1 . . . 2 . 2 1 . . . . . . . . . . . 1 . . . Mechanic 8 | . . . . . . 1 . . . . . . . . . . . 6 . 1 . . Operator 9 | . 1 . 4 . . 2 . . . . . . . . . . . 2 . . . . Watcher 11 | . 1 . 2 . 1 1 . . . . . . . . . . . 4 . 1 . 1 Swarmer 47 | . . 8 9 2 . 3 . . . . . . 1 5 . 4 . 13 . . . 2 Saboteur 4 | . . . . . . . . . . . . . . . . . . 4 . . . . Grunt 108 | . 4 . 14 . 14 16 . . . . 1 . 1 . . 1 . 39 7 2 . 9 Brawler 12 | . . . . . 2 1 . . . . . . . . . . . 6 1 1 . 1 Duelist 11 | . . . . . . . . . . 1 1 . 1 . . 1 . 6 . 1 . . Protector 6 | . . . . . . . . . . . . . . . . . . 5 1 . . . Researcher 1 | . . . . . . . . . . . . . . . . . . . 1 . . . Sentry 38 | . . . 4 . 6 10 3 . . . 1 . 1 2 1 1 . 3 . 3 . 3 Specialist 2 | . . . . . . . . . . . . . . . . . . . 2 . . . Hunter 25 | . . . . . 1 . . . . . . . . . . 1 . 11 10 . . 2 Programmer 16 | . . . . . . . . . . . . . . . . 1 . 6 2 . . 7 Heavy 2 | . . . . . . . . . . . . . . . . . . . . . . 2 Q-Series 2 | . . . . . . . . . . . . . . . . . . . . . . 2 Investigator 2 | . . . . . . . . . . . . . . . . . . 2 . . . . Striker 1 | . . . . . . . . . . . . . . . . . . 1 . . . . Executioner 1 | . . . . . . . . . . . . . . . . . . 1 . . . . Explorer 1 | . . . . . . . . 1 . . . . . . . . . . . . . . Guru 1 | . . . . . . . . 1 . . . . . . . . . . . . . . Scrapper 1 | . . . . . . . . 1 . . . . . . . . . . . . . . Decomposer 2 | . . . . . . . . . . . . . . . . . 2 . . . . . Packrat 4 | . . . . . . . . . . 3 1 . . . . . . . . . . . Thug 1 | . . . . . . . . 1 . . . . . . . . . . . . . . Butcher 1 | . . . . . . . . 1 . . . . . . . . . . . . . . Mutant 2 | . . . . 1 . . . . . . . . . . . 1 . . . . . . Best Kill Streak 33 | 6 2 3 6 5 7 10 2 5 . . 2 . 2 4 1 4 . 33 17 6 . 12 Combat Bots Only 28 | . 2 3 5 2 7 8 2 5 . . 2 . 2 4 1 4 . 28 11 5 . 8 Max Kills in Single Turn 6 | 1 1 1 2 1 2 3 1 1 . 1 1 . 1 1 1 2 2 6 4 2 . 4 Gunslinging 1 | . . . . . . . . . . . . . . . . 1 . . . . . . Exploded 5 | . . . . . . 2 . . . . . . . . . . . 5 2 1 . 3 Melee 1 | . . . . . . . . . . . . . . . . . . 1 . . . . Uniques/NPCs Destroyed . | . . . . . . . . . . . . . . . . . . . . . . . Combat | -11 -10 -10 -9 -9 -8 -8 -8 -8 -6 -6 -6 -6 -5 -5 -4 -4 -4 -3 -3 -2 -2 -1 -------- Run | Yrd Mat Min Mat Min Mat Sto Rec Scr Fac Low Low Dat Pro Fac Fac Upp Upp Res Tes Res Qua Acc Hostile Shots Fired 1346 | . 7 44 118 15 87 100 8 65 . . 3 . 50 26 9 17 . 335 267 8 2 185 Missed 447 | . 1 12 41 3 28 21 1 12 . . . . 18 5 1 3 . 108 123 2 . 68 Hits 899 | . 6 32 77 12 59 79 7 53 . . 3 . 32 21 8 14 . 227 144 6 2 117 Melee 18 | . . . . . 4 . . 5 . . . . . . . . . 5 . 2 . 2 Projectile 881 | . 6 32 77 12 55 79 7 48 . . 3 . 32 21 8 14 . 222 144 4 2 115 AOE 17 | . . . . . . . . . . . . . . . . . . 2 . . . 15 Critical Strikes 42 | . . . 4 1 5 3 1 4 . . . . 2 2 1 1 . 11 1 . 1 5 Part Disruptions 2 | . . . . . . . . . . . 1 . . . . . . 1 . . . . Damage Taken 16570 | . 93 261 905 190 933 1213 97 1225 . . 120 . 516 406 182 407 . 4990 1716 310 50 2956 Core 1436 | . 30 36 96 16 64 56 14 192 . . 18 . 78 . 39 . . 124 129 13 . 531 Absorbed by Shields 2133 | . . . . . . . . . . . 12 . 8 . . . . 933 202 40 . 938 Redirected to Core 354 | . . . . . . . . . . . . . . . . . . . . . . 354 Ignored by Resistances 197 | . . . . . 82 . . . . . . . 77 20 12 6 . . . . . . Regen/Repaired (Parts) 4064 | . . . 143 . 107 95 . . . . . . . . . . . 1992 789 . 123 815 Core Remaining (%) 79 | 100 . 73 . 100 . . . 11 . . . . 85 100 . . 95 . 77 . 100 57 Volleys Fired 739 | 8 11 18 106 16 85 100 5 12 . 12 8 . 23 12 4 18 1 136 53 13 1 97 Largest 4 | 2 2 2 1 1 2 2 2 2 . 2 2 . 2 3 3 4 4 4 2 2 2 3 Hottest 300 | 90 120 120 50 50 106 73 73 73 . 165 165 . 165 246 189 270 270 225 113 112 112 300 Shots Fired 1209 | 16 22 36 106 16 132 172 10 22 . 13 13 . 41 28 12 67 4 228 91 22 4 154 Gun 371 | 16 2 . . . 47 73 5 10 . 1 5 . 18 25 12 67 4 85 . . 1 . Cannon 756 | . 20 36 106 16 85 96 5 12 . 12 8 . 22 3 . . . 82 83 19 3 148 Launcher 82 | . . . . . . 3 . . . . . . 1 . . . . 61 8 3 . 6 Special . | . . . . . . . . . . . . . . . . . . . . . . . Kinetic 754 | . . . 106 16 111 169 10 22 . . . . . 4 4 18 1 106 79 19 4 85 Thermal 369 | 16 22 36 . . 21 . . . . 13 13 . 40 24 8 49 3 60 4 . . 60 Explosive 7 | . . . . . . 3 . . . . . . . . . . . 2 . . . 2 Electromagnetic 79 | . . . . . . . . . . . . . 1 . . . . 60 8 3 . 7 Robot Hit Streak 35 | 6 6 6 17 9 17 31 10 25 . 33 11 . 13 11 11 35 2 22 8 14 . 22 Robot Miss Streak 7 | 1 2 7 5 2 3 2 . . . 1 1 . 5 3 1 3 1 5 3 3 . 3 Penetration Max 2 | . . . 1 . 1 1 . . . . . . . . . 1 . 1 2 . . 1 Secondary Targets 3 | . . . . . . . . . . . . . . . . 3 . . . . . . Max Gunslinging Chain 2 | . . . . . . . . . . . . . . . . 2 . . . . . . Shots Hit Robots 754 | 10 12 18 76 11 84 107 7 15 . 10 10 . 31 23 9 49 1 143 39 17 . 82 Core Hits 726 | 8 10 8 28 3 35 55 3 6 . 4 11 . 15 13 5 26 2 361 48 25 . 60 Critical Kills 56 | . . . . . . . . . . . . . . . . . . 15 23 3 . 15 Critical Parts Destroyed 59 | . . . . . . . . . . . . . . . . . . 9 20 1 2 27 Critical Strikes 173 | . . . 12 3 13 10 . 1 . . . . . . . 2 . 29 43 9 2 49 Burn 8 | . . . . . 2 . . . . . . . . . . 2 . 4 . . . . Destroy 128 | . . . . . . . . . . . . . . . . . . 25 43 9 2 49 Blast 37 | . . . 12 3 11 10 . 1 . . . . . . . . . . . . . . Melee Attacks 13 | . . . . . . . . . . 1 1 . . . . 4 . . . . 3 4 Impact . | . . . . . . . . . . . . . . . . . . . . . . . Slashing 13 | . . . . . . . . . . 1 1 . . . . 4 . . . . 3 4 Piercing . | . . . . . . . . . . . . . . . . . . . . . . . Sneak Attacks 4 | . . . . . . . . . . 1 . . . . . . . . . . . 3 Combat Hostiles . | . . . . . . . . . . . . . . . . . . . . . . . Follow-up Attacks . | . . . . . . . . . . . . . . . . . . . . . . . Damage Inflicted 42116 | 119 202 345 4747 612 3701 4863 396 717 . 316 364 . 961 578 230 1221 22 15371 1750 915 36 4650 Guns 5557 | 119 24 . . . 446 636 34 109 . 21 158 . 429 518 230 1221 22 1590 . . . . Cannons 20141 | . 177 332 4662 612 3255 3797 305 605 . 242 148 . 440 60 . . . 1451 975 285 36 2759 Explosions 15808 | . . . 49 . . 404 . . . . . . 92 . . . . 12213 775 628 . 1647 Melee 350 | . . . . . . . . . . 53 58 . . . . . . . . . . 239 Ramming 260 | . 1 13 36 . . 26 57 3 . . . . . . . . . 117 . 2 . 5 Kinetic 19289 | . . . 4662 612 3457 4433 339 714 . . . . . 58 59 258 . 2185 936 285 36 1255 Thermal 9872 | 119 201 332 . . 244 . . . . 263 306 . 869 520 171 963 22 3804 190 . . 1868 Explosive 1855 | . . . . . . 404 . . . . . . . . . . . 897 . . . 554 Electromagnetic 10490 | . . . 49 . . . . . . . . . 92 . . . . 8368 624 628 . 729 Impact . | . . . . . . . . . . . . . . . . . . . . . . . Slashing 350 | . . . . . . . . . . 53 58 . . . . . . . . . . 239 Piercing . | . . . . . . . . . . . . . . . . . . . . . . . Highest Corruption 26 | . . . 9 . 5 5 . . . . 1 1 7 16 . 2 2 15 26 2 12 21 Average Corruption 8 | . . . 8 . 4 5 . . . . 1 1 4 7 . 2 2 9 18 2 8 15 Corruption Purged . | . . . . . . . . . . . . . . . . . . . . . . . Corruption Blocked . | . . . . . . . . . . . . . . . . . . . . . . . Effects 170 | . . . 1 . 12 7 . . . . . 1 9 6 . 14 2 29 19 . 10 60 Message Errors 32 | . . . 1 . 2 2 . . . . . . 2 2 . 1 . 6 4 . 2 10 Matter Fused 37 | . . . . . 4 1 . . . . . . 2 . . 6 1 5 8 . 1 9 Heat Flow Errors 24 | . . . . . . . . . . . . 1 2 2 . 1 1 5 2 . 1 9 Energy Discharges 16 | . . . . . 1 . . . . . . . 2 1 . . . 4 1 . . 7 Parts Rejected 2 | . . . . . . 2 . . . . . . . . . . . . . . . . Parts Fused 3 | . . . . . . . . . . . . . . 1 . . . 2 . . . . Data Loss (minor) 16 | . . . . . 2 . . . . . . . . . . 2 . 4 1 . 2 5 Data Loss (major) 10 | . . . . . . 1 . . . . . . . . . 1 . . . . 2 6 Misfires 9 | . . . . . . . . . . . . . . . . 1 . 2 . . 2 4 Alerts 5 | . . . . . 2 . . . . . . . . . . 1 . . 1 . . 1 Misdirections 3 | . . . . . . . . . . . . . . . . . . . . . . 3 Weapon Failures 13 | . . . . . 1 1 . . . . . . 1 . . 1 . 1 2 . . 6 Overload Shots . | . . . . . . . . . . . . . . . . . . . . . . . Overflow Damage 1869 | . . 17 547 145 245 233 . . . 61 74 . 12 . . . . 202 45 . . 288 Projectiles 1476 | . . 17 547 145 245 226 . . . 61 38 . 12 . . . . 14 . . . 171 Explosions 290 | . . . . . . 7 . . . . . . . . . . . 169 45 . . 69 Melee 103 | . . . . . . . . . . . 36 . . . . . . 19 . . . 48 Knockbacks 67 | . . . 21 2 5 14 1 2 . . . . . . . . . 7 3 . . 12 Impact 3 | . . . 1 . . . 1 . . . . . . . . . . 1 . . . . Kinetic 57 | . . . 18 2 4 11 . 2 . . . . . . . . . 5 3 . . 12 Secondary 7 | . . . 2 . 1 3 . . . . . . . . . . . 1 . . . . Self-Inflicted Damage 1103 | . . . . . . 29 . . . . . . . . . . . 670 59 166 . 179 Shots 70 | . . . . . . 1 . . . . . . . . . . . 40 6 12 . 11 Rammed 21 | . 2 3 6 . 1 3 1 2 . . . . . . . . . 2 . . . 1 Targets Rammed 31 | . 3 3 6 . 1 5 2 2 . . . . . . . . . 7 . 1 . 1 Kicked . | . . . . . . . . . . . . . . . . . . . . . . . Crushed 10 | . 1 . . . . 2 1 . . . . . . . . . . 5 . 1 . . Highest Temperature 354 | 90 186 312 190 220 298 200 93 181 . 64 162 256 270 285 186 198 134 271 354 17 128 301 Average Temperature 82 | 32 58 124 50 124 80 50 42 86 . 21 53 129 96 110 125 110 68 98 75 10 89 91 Received Heat Transfer 3078 | . 51 . 378 58 468 504 54 548 . . . . 243 63 45 18 . 430 84 14 . 120 Effects 5 | . . . . 1 1 . . . . . . . . 3 . . . . . . . . Energy Bleed 3 | . . . . 1 1 . . . . . . . . 1 . . . . . . . . Interference 2 | . . . . . . . . . . . . . . 2 . . . . . . . . Siege Activations . | . . . . . . . . . . . . . . . . . . . . . . . Martial Activations . | . . . . . . . . . . . . . . . . . . . . . . . Shielding Activations . | . . . . . . . . . . . . . . . . . . . . . . . Robots Disrupted 2 | . . . . . . . . . . . . . . . . . . . . 2 . . Combat Hostiles 1 | . . . . . . . . . . . . . . . . . . . . 1 . . Robots Corrupted 33 | . . . . . . 1 . . . . . . . . . . . 27 1 3 . 1 Combat Hostiles 31 | . . . . . . . . . . . . . . . . . . 26 1 3 . 1 Parts Fried 90 | . . . . . . 5 . . . . . . 1 . . . . 69 4 7 . 4 Impact Corruptions 3 | . . . 1 . . 1 . . . . . . . . . . . 1 . . . . Robots Melted 3 | . . . . . . . . . . . . . . 2 . 1 . . . . . . Combat Hostiles 3 | . . . . . . . . . . . . . . 2 . 1 . . . . . . Parts Melted 10 | . . 1 . . . . . . . . . . . 3 . 3 . 2 . . . 1 Heat Transferred 12323 | 322 432 666 . . 666 . . . . 346 535 . 1375 957 349 1716 50 3854 137 . . 918 Parts Sabotaged 1 | . . . . . . . . . . . . . . . . . . 1 . . . . Parts Stolen . | . . . . . . . . . . . . . . . . . . . . . . . Parts Stripped . | . . . . . . . . . . . . . . . . . . . . . . . Power Chain Reactions 27 | . . . . . . . . . . . . . . . . . . 23 1 . . 3 Alert | -11 -10 -10 -9 -9 -8 -8 -8 -8 -6 -6 -6 -6 -5 -5 -4 -4 -4 -3 -3 -2 -2 -1 ------- Run | Yrd Mat Min Mat Min Mat Sto Rec Scr Fac Low Low Dat Pro Fac Fac Upp Upp Res Tes Res Qua Acc Maximum Alert Level 5 | . . . 2 1 . 1 1 . . . . . . 1 . . . 5 5 5 3 3 Low Security (%) 55 | 100 100 100 67 51 100 57 91 . 100 . . . . 11 100 . . 25 . . . . Level 1 13 | . . . 10 48 . 42 8 . . . . . . 88 . . . 4 . . . . Level 2 7 | . . . 22 . . . . . . . . . . . . . . 5 . . . 47 Level 3 8 | . . . . . . . . . . . . . . . . . . 7 . . 100 52 Level 4 1 | . . . . . . . . . . . . . . . . . . 8 . . . . Level 5 6 | . . . . . . . . . . . . . . . . . . 1 100 100 . . High Security 7 | . . . . . . . . . . . . . . . . . . 46 . . . . Max Security . | . . . . . . . . . . . . . . . . . . . . . . . Sterilizations 1 | . . . . . . . . . . . . . . . . . . 1 . . . . Peak Influence 4773 | 15 50 63 674 310 198 396 238 . 164 . . . . 296 122 . . 4773 3306 1856 1076 919 Initial 2684 | . 3 13 . 259 31 79 136 . . . . . . 165 115 . . 6 2684 1854 1033 600 Average 625 | 2 8 19 230 189 76 204 115 . 94 . . . . 237 104 . . 1930 2890 1811 1033 735 Influence Increases 13375 | 35 165 210 1264 93 737 1017 242 . 175 62 444 . 519 402 37 411 . 5210 848 192 157 1155 Destroy 0b10 Robot/C 7320 | . 80 160 580 60 460 600 60 . . 40 300 . 380 180 20 300 . 2920 460 140 40 540 Destroy 0b10 Robot/NC 675 | 35 25 . 65 10 45 90 5 . 5 . 5 . 5 20 . . . 250 45 10 10 50 Destroy Leader 1372 | . 26 20 162 10 122 180 . . . 10 30 . 30 30 10 30 . 454 72 42 2 142 Allied During Kill 1143 | . . . 8 4 . . . . 1 12 109 . 104 55 7 81 . 747 . . 15 . Successful Hack 155 | . 17 . 42 . 36 7 11 . . . . . . . . . . . . . 18 24 Disable Machine 435 | . . . 45 . 15 75 . . . . . . . . . . . 150 15 . 45 90 Destroy Structure 1229 | . 2 . 62 9 29 50 2 . 5 . . . . 102 . . . 644 18 . 27 279 Partial Spotted 45 | . . . 15 . 15 . . . . . . . . . . . . . 15 . . . Lose Combat Pursuer 285 | . 15 30 75 . 15 15 . . . . . . . 15 . . . 45 45 . . 30 Miscellaneous 716 | . . . 210 . . . 164 . 164 . . . . . . . . . 178 . . . Influence Decreases 12460 | 30 136 244 599 676 630 856 592 . 140 97 376 68 256 428 182 428 65 447 2323 1652 995 1240 Entered New Map 5898 | . 2 21 . 406 51 110 214 . . 14 . 68 . 98 122 35 15 4 2089 1444 805 400 Time Decay 5564 | 30 134 223 469 230 569 556 378 . 140 83 356 . 226 310 60 383 50 295 214 198 170 490 Lost Part 300 | . . . 50 . 10 20 . . . . . . 30 20 . 10 . 100 20 10 . 30 Lost Ally 248 | . . . 80 40 . 20 . . . . 20 . . . . . . 48 . . 20 20 Purge Threat 450 | . . . . . . 150 . . . . . . . . . . . . . . . 300 Squads Dispatched 80 | . . . 9 . 4 7 . . . . 1 . 1 2 1 . . 34 5 3 2 11 Investigation 5 | . . . 2 . . 1 . . . . . . . . 1 . . 1 . . . . Extermination 8 | . . . . . . . . . . . . . . 1 . . . 2 1 1 1 2 Reinforcement 25 | . . . 7 . 3 4 . . . . . . . 1 . . . 4 3 . . 3 Assault 35 | . . . . . . 2 . . . . 1 . 1 . . . . 24 1 2 1 3 Garrison 7 | . . . . . 1 . . . . . . . . . . . . 3 . . . 3 Intercept . | . . . . . . . . . . . . . . . . . . . . . . . Searches Triggered . | . . . . . . . . . . . . . . . . . . . . . . . Data Miner Redirects 1 | . . . . . . . . . . . . . . . . . . . . 1 . . Construction Impeded 5 | . . . . . 1 . . . . . . . . . . . . 2 1 . . 1 Haulers Reinforced . | . . . . . . . . . . . . . . . . . . . . . . . Active Scanning Responses . | . . . . . . . . . . . . . . . . . . . . . . . Cargo Convoy Interrupts 1 | . . . . . . . . . . . . . . . . . . 1 . . . . Stealth | -11 -10 -10 -9 -9 -8 -8 -8 -8 -6 -6 -6 -6 -5 -5 -4 -4 -4 -3 -3 -2 -2 -1 --------- Run | Yrd Mat Min Mat Min Mat Sto Rec Scr Fac Low Low Dat Pro Fac Fac Upp Upp Res Tes Res Qua Acc Distress Signals 20 | . . . 4 . 4 5 . . . . . . . . . . . 6 . . . 1 Communications Jammed . | . . . . . . . . . . . . . . . . . . . . . . . Distress Signals . | . . . . . . . . . . . . . . . . . . . . . . . Times Spotted 507 | . 9 11 53 5 33 50 3 30 . 3 14 . 22 12 1 16 . 164 30 10 4 37 Peak Tracking Total 15 | . 3 3 5 4 7 5 2 15 . 2 7 . 6 5 1 7 . 12 7 4 2 8 Tactical Retreats 19 | . 1 1 5 . 1 1 . 2 . . . . . 1 . . . 3 2 . . 2 Traps | -11 -10 -10 -9 -9 -8 -8 -8 -8 -6 -6 -6 -6 -5 -5 -4 -4 -4 -3 -3 -2 -2 -1 ------- Run | Yrd Mat Min Mat Min Mat Sto Rec Scr Fac Low Low Dat Pro Fac Fac Upp Upp Res Tes Res Qua Acc Traps Triggered 19 | . 2 . 1 . 2 1 . . . . . . . . . . . 6 5 . 1 1 Indirectly 10 | . . . . . . . . . . . . . . . . . . 6 4 . . . Trap Hack Attempts . | . . . . . . . . . . . . . . . . . . . . . . . Triggered . | . . . . . . . . . . . . . . . . . . . . . . . Disarmed 6 | . . . . . . 6 . . . . . . . . . . . . . . . . Reprogrammed . | . . . . . . . . . . . . . . . . . . . . . . . Reused . | . . . . . . . . . . . . . . . . . . . . . . . Traps Extracted . | . . . . . . . . . . . . . . . . . . . . . . . Installed 6 | . . 5 1 . . . . . . . . . . . . . . . . . . . Triggered . | . . . . . . . . . . . . . . . . . . . . . . . Machines | -11 -10 -10 -9 -9 -8 -8 -8 -8 -6 -6 -6 -6 -5 -5 -4 -4 -4 -3 -3 -2 -2 -1 ---------- Run | Yrd Mat Min Mat Min Mat Sto Rec Scr Fac Low Low Dat Pro Fac Fac Upp Upp Res Tes Res Qua Acc Machines Disabled 36 | . . . 3 . 1 5 . 2 . 2 2 . 1 . . . . 10 1 . 3 6 Max in Single Turn 2 | . . . 2 . 1 1 . . . 1 1 . . . . . . 1 1 . 1 2 Garrison Access 1 | . . . . . . 1 . . . . . . . . . . . . . . . . Machines Repaired . | . . . . . . . . . . . . . . . . . . . . . . . Machines Dismantled . | . . . . . . . . . . . . . . . . . . . . . . . Machines Sabotaged . | . . . . . . . . . . . . . . . . . . . . . . . Overloaded Fab Kills . | . . . . . . . . . . . . . . . . . . . . . . . Hacking | -11 -10 -10 -9 -9 -8 -8 -8 -8 -6 -6 -6 -6 -5 -5 -4 -4 -4 -3 -3 -2 -2 -1 --------- Run | Yrd Mat Min Mat Min Mat Sto Rec Scr Fac Low Low Dat Pro Fac Fac Upp Upp Res Tes Res Qua Acc Machines Accessed 53 | . 4 1 8 . 7 9 3 . 2 . . 3 . 1 1 . . 4 2 . 4 4 Terminals 35 | . 4 . 4 . 5 6 2 . 1 . . . . 1 . . . 3 1 . 4 4 Fabricators 1 | . . . . . . . . . . . . . . . . . . . 1 . . . Repair Stations 6 | . . . 2 . 2 1 . . . . . . . . 1 . . . . . . . Recycling Units 3 | . . . . . . 1 1 . 1 . . . . . . . . . . . . . Scanalyzers 2 | . . . 2 . . . . . . . . . . . . . . . . . . . Garrison Access 2 | . . . . . . 1 . . . . . . . . . . . 1 . . . . Total Hacks 150 | . 10 1 33 . 20 24 8 . 3 . . 27 . 2 2 . . 7 3 . 5 5 Successful 79 | . 4 1 13 . 10 15 3 . . . . 27 . 1 . . . . 1 . 1 3 Failed 71 | . 6 . 20 . 10 9 5 . 3 . . . . 1 2 . . 7 2 . 4 2 Catastrophic 16 | . 2 . 2 . 1 . 1 . 2 . . . . . . . . 4 . . 2 2 Database Lockouts . | . . . . . . . . . . . . . . . . . . . . . . . Manual 70 | . 11 . 13 . 12 11 7 . . . . . . 2 2 . . 6 1 . 4 1 Terminals 79 | . 10 . 14 . 13 16 5 . 1 . . . . 2 . . . 6 2 . 5 5 Fabricators 1 | . . . . . . . . . . . . . . . . . . . 1 . . . Repair Stations 20 | . . . 8 . 7 3 . . . . . . . . 2 . . . . . . . Recycling Units 8 | . . . . . . 3 3 . 2 . . . . . . . . . . . . . Scanalyzers 11 | . . . 11 . . . . . . . . . . . . . . . . . . . Garrison Access 3 | . . . . . . 2 . . . . . . . . . . . 1 . . . . Terminal Hacks 52 | . 4 1 4 . 5 8 . . . . . 27 . . . . . . . . . 3 Record 6 | . . . . . . . . . . . . 6 . . . . . . . . . . Part Schematic 13 | . 1 . . . . . . . . . . 12 . . . . . . . . . . Robot Schematic 6 | . . . . . . . . . . . . 6 . . . . . . . . . . Robot Analysis 10 | . 3 . 2 . 4 1 . . . . . . . . . . . . . . . . Prototype ID Bank 3 | . . . . . . . . . . . . 3 . . . . . . . . . . Open Door 5 | . . 1 . . . 3 . . . . . . . . . . . . . . . 1 Branch Access Points 2 | . . . 1 . 1 . . . . . . . . . . . . . . . . . Scanalyzer Index 1 | . . . 1 . . . . . . . . . . . . . . . . . . . Unreport Threat 3 | . . . . . . 1 . . . . . . . . . . . . . . . 2 Locate Traps 1 | . . . . . . 1 . . . . . . . . . . . . . . . . Disarm Traps 1 | . . . . . . 1 . . . . . . . . . . . . . . . . Zone Layout 1 | . . . . . . 1 . . . . . . . . . . . . . . . . Fabricator Hacks . | . . . . . . . . . . . . . . . . . . . . . . . Repair Station Hacks 10 | . . . 3 . 5 2 . . . . . . . . . . . . . . . . Scan Component 6 | . . . 2 . 3 1 . . . . . . . . . . . . . . . . Repair 4 | . . . 1 . 2 1 . . . . . . . . . . . . . . . . Recycling Unit Hacks 3 | . . . . . . 2 1 . . . . . . . . . . . . . . . Process 1 | . . . . . . 1 . . . . . . . . . . . . . . . . Retrieve Matter 1 | . . . . . . 1 . . . . . . . . . . . . . . . . Retrieve Components 1 | . . . . . . . 1 . . . . . . . . . . . . . . . Scanalyzer 6 | . . . 6 . . . . . . . . . . . . . . . . . . . Insert Component 1 | . . . 1 . . . . . . . . . . . . . . . . . . . Retrieve Study 5 | . . . 5 . . . . . . . . . . . . . . . . . . . Garrison Access Hacks 1 | . . . . . . 1 . . . . . . . . . . . . . . . . Seal Access 1 | . . . . . . 1 . . . . . . . . . . . . . . . . Unauthorized Hacks 7 | . . . . . . 2 2 . . . . . . 1 . . . . 1 . 1 . Terminals 5 | . . . . . . 2 1 . . . . . . 1 . . . . . . 1 . Botnet 4 | . . . . . . 1 1 . . . . . . 1 . . . . . . 1 . Operators 1 | . . . . . . 1 . . . . . . . . . . . . . . . . Fabricators 1 | . . . . . . . . . . . . . . . . . . . 1 . . . Liberate 1 | . . . . . . . . . . . . . . . . . . . 1 . . . Repair Stations . | . . . . . . . . . . . . . . . . . . . . . . . Recycling Units 1 | . . . . . . . 1 . . . . . . . . . . . . . . . Mask 1 | . . . . . . . 1 . . . . . . . . . . . . . . . Scanalyzers . | . . . . . . . . . . . . . . . . . . . . . . . Garrison Access . | . . . . . . . . . . . . . . . . . . . . . . . Data Cores Recovered 2 | . 1 . 1 . . . . . . . . . . . . . . . . . . . Used 1 | . 1 . . . . . . . . . . . . . . . . . . . . . Hacking Detections 40 | . 3 . 6 . 5 7 2 . 2 . . . . 1 1 . . 4 2 . 4 3 Full Trace Events 6 | . . . 2 . . 1 1 . . . . . . . 1 . . 1 . . . . Feedback Events 2 | . . . 2 . . . . . . . . . . . . . . . . . . . Corruption 1 | . . . 1 . . . . . . . . . . . . . . . . . . . Hackware Fried 1 | . . . 1 . . . . . . . . . . . . . . . . . . . Feedback Blocked . | . . . . . . . . . . . . . . . . . . . . . . . Robot Schematics Acquired 8 | . . . . . . . . . . . . 6 . . . . . . 2 . . . Robots Built . | . . . . . . . . . . . . . . . . . . . . . . . Authchips . | . . . . . . . . . . . . . . . . . . . . . . . Time . | . . . . . . . . . . . . . . . . . . . . . . . Total Robot Build Rating . | . . . . . . . . . . . . . . . . . . . . . . . Part Schematics Acquired 14 | . 1 . . . . . . . . . . 12 . . . . . . 1 . . . Parts Built . | . . . . . . . . . . . . . . . . . . . . . . . Authchips . | . . . . . . . . . . . . . . . . . . . . . . . Time . | . . . . . . . . . . . . . . . . . . . . . . . Total Part Build Rating . | . . . . . . . . . . . . . . . . . . . . . . . Part Studies Acquired 5 | . . . 5 . . . . . . . . . . . . . . . . . . . Parts Repaired 4 | . . . 1 . 2 1 . . . . . . . . . . . . . . . . Time 128 | . . . 38 . 52 38 . . . . . . . . . . . . . . . . Parts Recycled . | . . . . . . . . . . . . . . . . . . . . . . . Recycled Matter 192 | . . . . . . 192 . . . . . . . . . . . . . . . . Retrieved Matter 195 | . . . . . . 195 . . . . . . . . . . . . . . . . Retrieved Components 2 | . . . . . . . 2 . . . . . . . . . . . . . . . Parts Scanalyzed 1 | . . . 1 . . . . . . . . . . . . . . . . . . . Part Schematics Acquired . | . . . . . . . . . . . . . . . . . . . . . . . Parts Damaged . | . . . . . . . . . . . . . . . . . . . . . . . Bothacking | -11 -10 -10 -9 -9 -8 -8 -8 -8 -6 -6 -6 -6 -5 -5 -4 -4 -4 -3 -3 -2 -2 -1 ------------ Run | Yrd Mat Min Mat Min Mat Sto Rec Scr Fac Low Low Dat Pro Fac Fac Upp Upp Res Tes Res Qua Acc Used RIF Installer . | . . . . . . . . . . . . . . . . . . . . . . . Robots Hacked . | . . . . . . . . . . . . . . . . . . . . . . . Non-combat . | . . . . . . . . . . . . . . . . . . . . . . . Combat . | . . . . . . . . . . . . . . . . . . . . . . . Robot Hacks Applied . | . . . . . . . . . . . . . . . . . . . . . . . Relay Couplers Released . | . . . . . . . . . . . . . . . . . . . . . . . Fabnet Peak Effective % . | . . . . . . . . . . . . . . . . . . . . . . . Robots Rewired 8 | . . . . . . . . . . 3 2 . 1 . . 2 . . . . . . Allies Hacked 1 | . . . . . . . . . . . . . . . . . . 1 . . . . Hacks Repelled . | . . . . . . . . . . . . . . . . . . . . . . . Allies | -11 -10 -10 -9 -9 -8 -8 -8 -8 -6 -6 -6 -6 -5 -5 -4 -4 -4 -3 -3 -2 -2 -1 -------- Run | Yrd Mat Min Mat Min Mat Sto Rec Scr Fac Low Low Dat Pro Fac Fac Upp Upp Res Tes Res Qua Acc Total Allies 24 | . . . 4 3 . 2 . 1 . 3 2 . 1 . . 2 . 1 . . 3 2 Largest Group 4 | . . . 3 2 . 2 . 1 1 4 3 2 2 1 1 3 3 3 . . 3 1 Highest-Rated Group 618 | . . . 24 38 . 62 . 464 464 546 523 493 493 450 450 529 529 618 . . 177 82 Highest-Rated Ally 592 | . . . 8 31 . 31 . 464 464 464 464 464 464 450 450 450 450 592 . . 59 82 Total Orders 1 | . . . . . . . . . . . . . . . . . . . . . . 1 STAY 1 | . . . . . . . . . . . . . . . . . . . . . . 1 Ally Attacks 348 | . . . 19 12 . 5 . 40 . 11 28 . 57 8 . 30 . 119 . . 18 1 Total Damage 26505 | . . . 172 169 . 103 . 3250 . 794 2775 . 3602 337 . 1528 . 12843 . . 875 57 Kills 153 | . . . 3 1 . . . 24 1 3 15 . 17 6 . 6 . 72 . . 5 . Allies Corrupted 1 | . . . . . . . . . . . . . . . . . . 1 . . . . Allies Melted . | . . . . . . . . . . . . . . . . . . . . . . . X0-1V1 Amusement Gains 362 | . 16 . 30 . 20 10 . 20 . . . . 10 . 10 20 . 95 41 30 . 60 Average Entertainment 25 | . 15 6 9 5 14 13 10 19 15 8 5 . 5 5 12 24 11 72 91 61 56 47 Good Acts 97 | . 1 2 16 4 12 5 3 1 . 3 5 . . 2 . 1 . 17 3 2 8 12 Bad Acts 49 | . . . 6 1 3 5 2 . 3 2 . . 3 6 1 9 . 2 2 . 1 3 Intel | -11 -10 -10 -9 -9 -8 -8 -8 -8 -6 -6 -6 -6 -5 -5 -4 -4 -4 -3 -3 -2 -2 -1 ------- Run | Yrd Mat Min Mat Min Mat Sto Rec Scr Fac Low Low Dat Pro Fac Fac Upp Upp Res Tes Res Qua Acc Active Infowar (turns) 7562 | . . . 519 . . . . . 129 808 813 116 527 355 . . . 1818 447 401 346 1283 Optics 4295 | . . . . . . . . . . . . . . . . . . 1818 447 401 346 1283 Structural 2748 | . . . . . . . . . 129 808 813 116 527 355 . . . . . . . . Traps 534 | . . . . . . . . . . . . . . . . . . 94 22 400 18 . Seismic 519 | . . . 519 . . . . . . . . . . . . . . . . . . . Robot Analysis Total 10 | . 3 . 2 . 4 1 . . . . . . . . . . . . . . . . Derelict Logs Recovered 7 | . . 2 . . . . . . . 1 1 . 1 . . 1 1 . . . . . Drone Launches . | . . . . . . . . . . . . . . . . . . . . . . . Drone Recoveries . | . . . . . . . . . . . . . . . . . . . . . . . Exploration | -11 -10 -10 -9 -9 -8 -8 -8 -8 -6 -6 -6 -6 -5 -5 -4 -4 -4 -3 -3 -2 -2 -1 ------------- Run | Yrd Mat Min Mat Min Mat Sto Rec Scr Fac Low Low Dat Pro Fac Fac Upp Upp Res Tes Res Qua Acc Turns Passed 18188 | 217 727 756 1700 499 1784 1626 907 788 297 808 813 116 527 695 139 1075 106 2131 447 401 346 1283 Spaces Moved 8355 | 64 362 419 667 162 660 607 577 491 211 490 486 78 300 269 78 526 64 719 157 209 181 578 Core 85 | 4 . . . . . . . 29 52 . . . . . . . . . . . . . Treads 8270 | 60 362 419 667 162 660 607 577 462 159 490 486 78 300 269 78 526 64 719 157 209 181 578 Legs . | . . . . . . . . . . . . . . . . . . . . . . . Wheels . | . . . . . . . . . . . . . . . . . . . . . . . Hover . | . . . . . . . . . . . . . . . . . . . . . . . Flight . | . . . . . . . . . . . . . . . . . . . . . . . Fastest Speed 50 | 50 160 160 160 200 160 148 151 50 50 145 145 145 145 145 155 155 155 155 155 161 161 150 Average Speed 166 | 153 161 160 189 200 197 161 151 147 121 145 145 146 145 153 155 155 155 223 159 161 164 155 Slowest Speed 249 | 160 240 160 240 200 200 200 151 151 145 145 225 225 145 158 155 155 155 238 161 161 166 249 Overloaded Moves . | . . . . . . . . . . . . . . . . . . . . . . . Propulsion Burnouts . | . . . . . . . . . . . . . . . . . . . . . . . Robots Hopped . | . . . . . . . . . . . . . . . . . . . . . . . Potential Cave-ins 15 | . . . . . . 1 . . . . . . . . . . . 5 . . . 9 Cave-ins Triggered 2 | . . . . . . . . . . . . . . . . . . . . . . 2 Exploration Rate (%) 45 | 3 63 86 73 20 58 89 98 52 5 68 69 69 57 6 3 68 11 39 46 13 31 23 Regions Visited 22 Branch Regions 13 Pre-discovered Areas 5 | . . . . . . 1 . . . . 1 1 . . . 1 1 . . . . . Known Exits Taken 8 | . . . 1 1 1 . 1 . . 1 . . . . . . . 1 1 . 1 . Unknown Exits Taken 14 | 1 1 1 . . . 1 . 1 1 . 1 1 1 1 1 1 1 . . 1 . . Scrap Searched 13 | . . 2 . . . . . 3 . 1 4 . 1 . . 2 . . . . . . Spaces Dug 61 | . . . 6 . 8 10 . . . . 1 . 2 2 . 4 . 5 1 . . 22 Terrain Destroyed 480 | . . . 74 10 37 57 2 . . 3 2 . 6 2 . 6 . 148 8 1 . 124 Melee 4 | . . . . . . . . . . . . . . . . 4 . . . . . . Projectile 226 | . . . 38 10 37 39 2 . . 3 2 . 6 2 . 2 . 22 3 1 . 59 AOE 250 | . . . 36 . . 18 . . . . . . . . . . . 126 5 . . 65 Terrain Rammed . | . . . . . . . . . . . . . . . . . . . . . . . Walls Destroyed . | . . . . . . . . . . . . . . . . . . . . . . . Machines Disabled . | . . . . . . . . . . . . . . . . . . . . . . . Actions | -11 -10 -10 -9 -9 -8 -8 -8 -8 -6 -6 -6 -6 -5 -5 -4 -4 -4 -3 -3 -2 -2 -1 --------- Run | Yrd Mat Min Mat Min Mat Sto Rec Scr Fac Low Low Dat Pro Fac Fac Upp Upp Res Tes Res Qua Acc Total 11385 | 164 481 467 945 316 995 1056 602 532 250 571 576 80 343 523 88 738 69 1043 257 253 224 812 Wait 1540 | 80 67 16 96 128 184 303 . 17 20 42 51 3 7 213 4 155 5 46 24 10 2 67 Move 8331 | 63 361 418 666 161 659 606 576 490 210 489 485 77 299 268 77 525 63 718 156 208 180 576 Hop . | . . . . . . . . . . . . . . . . . . . . . . . Pick Up 160 | 7 15 3 22 4 24 6 3 . 5 3 6 . 2 8 . 4 . 21 1 8 5 13 Fast Attach 93 | 6 8 . 5 . 5 9 1 2 8 4 1 . . 9 1 2 . 17 3 1 3 8 Attach 59 | . . 1 6 . 6 3 3 . 1 . . . 2 4 . 2 . 12 4 2 3 10 Detach 48 | . 3 . 3 . . 1 4 1 1 . 1 . . 4 1 1 . 19 2 . . 7 Swap 115 | . 5 1 11 1 6 10 6 3 . . . . 5 4 . 6 . 27 11 4 4 11 Drop 159 | . 8 2 23 6 25 13 2 5 5 1 . . . 1 1 4 . 27 3 6 10 17 Fire 739 | 8 11 18 106 16 85 100 5 12 . 12 8 . 23 12 4 18 1 136 53 13 1 97 Melee 13 | . . . . . . . . . . 1 1 . . . . 4 . . . . 3 4 Ram . | . . . . . . . . . . . . . . . . . . . . . . . Kick . | . . . . . . . . . . . . . . . . . . . . . . . Crush 31 | . 3 3 6 . 1 5 2 2 . . . . . . . . . 7 . 1 . 1 Escape Stasis 13 | . . . . . . . . . . . . . . . . . . 12 . . . 1 Rewire 65 | . . . . . . . . . . 19 23 . 5 . . 17 . 1 . . . . Trap 6 | . . 5 1 . . . . . . . . . . . . . . . . . . . Miscellaneous 13 | . . . . . . . . . . . . . . . . . . . . . 13 . Route ------- -11/Scrapyard -10/Materials (discovered 5 exits: *Mat x2 / *Min x2 / [*Sub]) -10/Mines (discovered 2 exits: *Mat x2) -9/Materials (discovered 3 exits: *Mat x2 / *Min) -9/Mines -8/Materials (discovered 4 exits: [*Fac x2] / *Sto x2) -8/Storage (discovered 2 exits: [*Fac] / *Rec) -8/Recycling (discovered 2 exits: *Fac / *Scr) -8/Scraptown -6/Factory -6/Lower Caves -6/Lower Caves -6/Data Miner -5/Proximity Caves -5/Factory -4/Factory -4/Upper Caves -4/Upper Caves -3/Research (discovered 3 exits: Res / *Tes x2) -3/Testing -2/Research -2/Quarantine -1/Access To Epsilon Eridani History --------- Turn | Location | Event 5 | -11/Scrapyard | Discovered new exit (range 16) 218 | -11/Scrapyard | Entered Materials 307 | -10/Materials | Build established: Mutant 392 | -10/Materials | Discovered new exit (range 15) 404 | -10/Materials | Discovered new exit (range 16) 695 | -10/Materials | Discovered new exit (range 16) 859 | -10/Materials | Discovered new exit (range 4) 859 | -10/Materials | Prayed at D.C.S.S. Altar Unit 921 | -10/Materials | Discovered new exit (range 16) 945 | -10/Materials | Entered Mines 990 | -10/Mines | Learned Materials stockpile data 1086 | -10/Mines | Found a damaged Exp. Sensor Array with a note attached 1090 | -10/Mines | Found Prototype Device 1215 | -10/Mines | Propulsion slot count permanently improved by X0-1V1 (+1) 1457 | -10/Mines | Found a hidden stash of uninstalled traps 1536 | -10/Mines | Discovered new exit (range 16) 1553 | -10/Mines | Learned Materials terminal intel 1617 | -10/Mines | Discovered new exit (range 5) 1658 | -10/Mines | Met a Derelict who couldn't figure out how to use a Trap Extractor 1701 | -10/Mines | Entered Materials 1701 | -9/Materials | Evolved 2 slots: Utility x2 1703 | -9/Materials | Loaded intel: 12 terminal locations 1981 | -9/Materials | Identified exit to Mines 1999 | -9/Materials | Build established: Scavenger-Mutant 2183 | -9/Materials | X0-1V1 announced a LAN party 2268 | -9/Materials | Discovered new exit (range 16) 2517 | -9/Materials | Build established: Hacker-Mutant 2541 | -9/Materials | Energy generation permanently improved by X0-1V1 (+10; -100 max core) 2642 | -9/Materials | X0-1V1 activates XOMVISION 2735 | -9/Materials | X0-1V1 put everyone to sleep 2863 | -9/Materials | X0-1V1 foreshadows a heat wave 2970 | -9/Materials | System Shield fried by hacking feedback 2971 | -9/Materials | Forcibly received Sfc. Transmogifier from X0-1V1 2991 | -9/Materials | Build established: Scavenger-Mutant 2992 | -9/Materials | X0-1V1 sent you to a vault 2997 | -9/Materials | Identified exit to Materials 2997 | -9/Materials | X0-1V1 revealed exit location to -8/Materials 3008 | -9/Materials | Repaired Hvy. Assault Cannon+? 3014 | -9/Materials | X0-1V1 added 0b10 threat records associated with you (considerable) 3057 | -9/Materials | X0-1V1 upgraded hostiles (x2) 3066 | -9/Materials | X0-1V1 sent allied G-34 Mercenary (x4) 3130 | -9/Materials | Lost 4 allies 3136 | -9/Materials | Ambient heat levels rising (+10) 3359 | -9/Materials | Identified Exp. Sensor Array 3401 | -9/Materials | Entered Mines 3443 | -9/Mines | Weapon slot count temporarily expanded by X0-1V1 (+2) 3535 | -9/Mines | Received a Mining Laser from a helpful Derelict 3610 | -9/Mines | Discovered exit to Materials (range 3) 3730 | -9/Mines | Ranged accuracy permanently improved by X0-1V1 (+8%; -80 max core) 3833 | -9/Mines | Weapon slot count reverted to normal (-2) 3900 | -9/Mines | Entered Materials 3900 | -8/Materials | Evolved 2 slots: Propulsion x1, Weapon x1 3981 | -8/Materials | X0-1V1 sent you to a vault 4137 | -8/Materials | X0-1V1 upgraded hostiles (x1) 4194 | -8/Materials | Repaired Lgt. Treads+ 4221 | -8/Materials | Repaired Lgt. Treads+ 4235 | -8/Materials | Garrison activated, responded to threat 4367 | -8/Materials | Discovered new exit (range 4) 4527 | -8/Materials | Build established: Scavenger-Tank 4842 | -8/Materials | Identified exit to Storage 5044 | -8/Materials | Discovered new exit (range 7) 5143 | -8/Materials | X0-1V1 activates XOMVISION 5642 | -8/Materials | Destroyed 7 combat bots 5684 | -8/Materials | Entered Storage 5699 | -8/Storage | X0-1V1 activates XOMVISION 6018 | -8/Storage | X0-1V1 sent you into danger 6078 | -8/Storage | X0-1V1 activates XOMVISION 6143 | -8/Storage | Repaired Hvy. Assault Cannon+ 6201 | -8/Storage | X0-1V1 caused items to flee you 6326 | -8/Storage | X0-1V1 announced a LAN party 6420 | -8/Storage | Items stopped fleeing you 6483 | -8/Storage | Discovered new exit (range 16) 6827 | -8/Storage | Destroyed 8 combat bots 6845 | -8/Storage | Build established: Tank 6909 | -8/Storage | Used back door to open Recycling access 6909 | -8/Storage | Discovered new exit (range 5) 7050 | -8/Storage | Learned location of Armory (-4) 7211 | -8/Storage | Met a pair of Derelict thieves 7310 | -8/Storage | Entered Recycling 7515 | -8/Recycling | Identified exit to Scraptown 7515 | -8/Recycling | X0-1V1 revealed exit location to -8/Scraptown 7595 | -8/Recycling | X0-1V1 added 0b10 threat records associated with you (minor) 7683 | -8/Recycling | Discovered new exit (range 5) 8179 | -8/Recycling | Scanned before Scraplab entrance 8200 | -8/Recycling | Entered Scraplab 8217 | -8/Recycling | Entered Scraptown 8547 | -8/Scraptown | Discovered new exit (range 11) 8669 | -8/Scraptown | Visited Red Mages 8709 | -8/Scraptown | Visited Symbiants 8781 | -8/Scraptown | Visited Science Testing Area 8897 | -8/Scraptown | Visited Shadow of the Wyrm 8913 | -8/Scraptown | X0-1V1 brought Wyrm Statue to life 8913 | -8/Scraptown | Attacked by Scraptown defenders 8988 | -8/Scraptown | Core integrity fell below 50% 9000 | -8/Scraptown | Core integrity fell below 20% 9005 | -8/Scraptown | Entered Factory 9005 | -6/Factory | Accompanied by 1 ally 9005 | -6/Factory | Evolved 4 slots: Utility x4 9011 | -6/Factory | X0-1V1 added 0b10 threat records associated with you (minor) 9263 | -6/Factory | Discovered new exit (range 14) 9271 | -6/Factory | Build established: Mutant 9302 | -6/Factory | Entered Lower Caves 9302 | -6/Lower Caves | Accompanied by 1 ally 9441 | -6/Lower Caves | X0-1V1 mutated your Utility slot to Power slot 9630 | -6/Lower Caves | X0-1V1 activates XOMVISION 9661 | -6/Lower Caves | Learned 4 Factory zone layouts 9682 | -6/Lower Caves | Identified exit to Lower Caves 9682 | -6/Lower Caves | X0-1V1 revealed exit location to -6/Lower Caves 10026 | -6/Lower Caves | Attacked by a delusional Derelict stockpiling Unaware 10110 | -6/Lower Caves | Entered another Lower Caves area 10110 | -6/Lower Caves | Accompanied by 4 allies 10121 | -6/Lower Caves | Attracted the attention of an 0b10 outpost 10163 | -6/Lower Caves | Lost 5 allies 10801 | -6/Lower Caves | Build established: Derelict-Mutant 10872 | -6/Lower Caves | Discovered new exit (range 7) 10923 | -6/Lower Caves | Entered Data Miner 10923 | -6/Data Miner | Accompanied by 2 allies 10923 | -6/Data Miner | Discovered new exit (range 6) 10952 | -6/Data Miner | Met Data Miner 10981 | -6/Data Miner | Learned location of Section 7 (-2) 10981 | -6/Data Miner | Acquired the access code to Warlord's prototype stash 11003 | -6/Data Miner | Received God Mode back door access code from Data Miner 11039 | -6/Data Miner | Entered Proximity Caves 11039 | -5/Proximity Caves | Accompanied by 2 allies 11070 | -5/Proximity Caves | Spotted B-75 Beast 11088 | -5/Proximity Caves | Allies destroyed B-75 Beast 11100 | -5/Proximity Caves | Attracted the attention of an 0b10 outpost 11188 | -5/Proximity Caves | X0-1V1 caused items to flee you 11430 | -5/Proximity Caves | Attracted the attention of an 0b10 checkpoint 11460 | -5/Proximity Caves | Items stopped fleeing you 11475 | -5/Proximity Caves | Learned Factory interactive machine intel 11477 | -5/Proximity Caves | Lost 3 parts (1p2u) 11529 | -5/Proximity Caves | Discovered new exit (range 14) 11566 | -5/Proximity Caves | Entered Factory 11566 | -5/Factory | Accompanied by 1 ally 11566 | -5/Factory | Evolved 2 slots: Propulsion x2 11568 | -5/Factory | Loaded intel: 53 interactive machine locations 11642 | -5/Factory | X0-1V1 caused items to flee you 11830 | -5/Factory | X0-1V1 sent someone to keep an eye on you 11862 | -5/Factory | Items stopped fleeing you 12161 | -5/Factory | Build established: Scavenger-Tank 12177 | -5/Factory | System corruption reached 10% 12202 | -5/Factory | Discovered new exit (range 8) 12261 | -5/Factory | Entered another Factory area 12261 | -4/Factory | Accompanied by 1 ally 12261 | -4/Factory | Evolved 2 slots: Utility x1, Weapon x1 12297 | -4/Factory | Discovered new exit (range 15) 12303 | -4/Factory | X0-1V1 vaporized surrounding terrain (radius 22) 12400 | -4/Factory | Entered Upper Caves 12400 | -4/Upper Caves | Accompanied by 1 ally 12460 | -4/Upper Caves | X0-1V1 caused items to flee you 12669 | -4/Upper Caves | X0-1V1 vaporized surrounding terrain (radius 22) 12694 | -4/Upper Caves | Items stopped fleeing you 12768 | -4/Upper Caves | X0-1V1 vaporized surrounding terrain (radius 19) 12828 | -4/Upper Caves | Learned location of Testing (-3) 13005 | -4/Upper Caves | Build established: Scavenger-Gunner 13137 | -4/Upper Caves | X0-1V1 sent you into danger 13141 | -4/Upper Caves | Attracted the attention of an 0b10 outpost 13452 | -4/Upper Caves | Discovered new exit (range 11) 13475 | -4/Upper Caves | Entered another Upper Caves area 13475 | -4/Upper Caves | Accompanied by 3 allies 13567 | -4/Upper Caves | Discovered new exit (range 7) 13581 | -4/Upper Caves | Entered Research 13581 | -3/Research | Accompanied by 3 allies 13581 | -3/Research | Evolved 2 slots: Power x1, Utility x1 13592 | -3/Research | Found Gamma Bomb Array 13596 | -3/Research | Found Gamma Bomb Array 13599 | -3/Research | Found Gamma Bomb Array 13623 | -3/Research | Chaos Wyrm evolved into Greater Chaos Wyrm 13630 | -3/Research | Found Prototype Protection 13630 | -3/Research | Identified Wyrmplate 13962 | -3/Research | Identified exit to Research 13962 | -3/Research | X0-1V1 revealed exit location to -2/Research 13993 | -3/Research | Found Prototype Processor 13993 | -3/Research | Identified Spectral Analyzer 14012 | -3/Research | X0-1V1 activates XOMVISION 14028 | -3/Research | Found Fusion Bomb Launcher 14134 | -3/Research | Garrison activated, responded to threat 14274 | -3/Research | Destroyed 9 combat bots 14491 | -3/Research | Cargo convoy interrupted 14491 | -3/Research | Spotted Striker 14491 | -3/Research | Spotted Executioner 14493 | -3/Research | Spotted Striker 14496 | -3/Research | Allies destroyed Executioner 14502 | -3/Research | Allies destroyed Striker 14504 | -3/Research | Destroyed Striker 14581 | -3/Research | First assault squad dispatched 14699 | -3/Research | X0-1V1 activates XOMVISION 14721 | -3/Research | High security lockdown imminent 14801 | -3/Research | High security lockdown engaged 14980 | -3/Research | Destroyed 15 combat bots 15064 | -3/Research | Spotted Executioner 15082 | -3/Research | Destroyed Executioner 15109 | -3/Research | Found Prototype Processor 15109 | -3/Research | Identified Exp. Core Analyzer 15110 | -3/Research | Lost 4 parts (3n1w) 15146 | -3/Research | Spotted Investigator 15160 | -3/Research | Destroyed Investigator 15200 | -3/Research | Found Prototype Launcher 15203 | -3/Research | Identified exit to Testing 15203 | -3/Research | X0-1V1 revealed exit location to -3/Testing 15322 | -3/Research | Spotted Investigator 15325 | -3/Research | Scanned by Researcher 15329 | -3/Research | Destroyed Investigator 15334 | -3/Research | Sterilization system engaged 15334 | -3/Research | Non-combat units ordered to evacuate 15363 | -3/Research | System corruption reached 10% 15401 | -3/Research | Found Corrupted Prototype Protection 15401 | -3/Research | Identified Wyrmscale 15405 | -3/Research | Found Corrupted Wyrmscale 15407 | -3/Research | Destroyed 28 combat bots 15434 | -3/Research | Combat units ordered to evacuate 15593 | -3/Research | Allied Derelicts emerged from ambush trap array 15634 | -3/Research | Ambient heat levels rising (+10) 15707 | -3/Research | Discovered exit to Testing (range 14) 15712 | -3/Research | Entered Testing 15898 | -3/Testing | Found Prototype Device 15898 | -3/Testing | Identified Exp. Hardlight Generator 15962 | -3/Testing | First assault squad dispatched 16039 | -3/Testing | Destroyed 11 combat bots 16046 | -3/Testing | Discovered exit to Research (range 24) 16146 | -3/Testing | X0-1V1 added 0b10 threat records associated with you (considerable) 16159 | -3/Testing | Entered Research 16159 | -2/Research | Evolved 2 slots: Utility x2 16232 | -2/Research | X0-1V1 put everyone to sleep 16251 | -2/Research | Spotted B-90 Cyclops 16251 | -2/Research | X0-1V1 activates XOMVISION 16335 | -2/Research | Build established: Scavenger-Mutant 16409 | -2/Research | First assault squad dispatched 16428 | -2/Research | Incoming assault squad redirected 16428 | -2/Research | X0-1V1 blocked Data Miner access to 0b10 dispatch routers 16510 | -2/Research | Discovered new exit (range 20) 16560 | -2/Research | Entered Quarantine 16608 | -2/Quarantine | X0-1V1 put everyone to sleep 16617 | -2/Quarantine | X0-1V1 sent you to a vault 16656 | -2/Quarantine | Identified exit to Access 16656 | -2/Quarantine | X0-1V1 revealed exit location to -1/Access 16668 | -2/Quarantine | System corruption reached 10% 16672 | -2/Quarantine | Found Alien Energy Cannon 16731 | -2/Quarantine | X0-1V1 activates XOMVISION 16810 | -2/Quarantine | First assault squad dispatched 16844 | -2/Quarantine | Found Alien Artifact 16906 | -2/Quarantine | Entered Access 16906 | -1/Access | Accompanied by 1 ally 16906 | -1/Access | Evolved 2 slots: Utility x2 16907 | -1/Access | Identified Phase Redirector 16989 | -1/Access | System corruption reached 10% 17032 | -1/Access | Identified Core Cannon 17147 | -1/Access | Identified exit to Surface 17147 | -1/Access | X0-1V1 revealed exit location to -0/Surface 17213 | -1/Access | Build established: Hacker-Mutant 17375 | -1/Access | X0-1V1 sent you to a vault 17399 | -1/Access | Botcube activated 17409 | -1/Access | Botcube completed mutation into legged form, armed with 2 melee weapons 17460 | -1/Access | X0-1V1 turns hostiles against one another 17590 | -1/Access | Garrison activated, responded to threat 17604 | -1/Access | Build established: Tank 17656 | -1/Access | First assault squad dispatched 17683 | -1/Access | Found Exp. Phase Shifter 17876 | -1/Access | Crushed by falling debris 17886 | -1/Access | Crushed by falling debris 17917 | -1/Access | X0-1V1 caused items to flee you 18023 | -1/Access | Destroyed 8 combat bots 18129 | -1/Access | Items stopped fleeing you 18189 | *** | Escaped! Last Messages --------------- 18076_ System corrupted: Component data lost. 18095_ System corrupted: Matter fused (-7). 18113_ X0-1V1 lends a hand with your twisted circuits (-17 system corruption). 18129_ Items no longer flee you. 18130_ System corrupted: Matter fused (-6). 18138_ X0-1V1 points here and there (5 item locations revealed). 18156_ ALERT: Unidentified disturbance in Zone 6A, assault force dispatched. 18175_ Connecting with Terminal... >>Open(Door) Sealed Barrier opened. 18175_ Terminal disabled. 18178_ System corrupted: FCS attempts to trigger Hvy. Linear Accelerator. 18178_ System corrupted: Hvy. Linear Accelerator misfires. 18181_ The Access Shell folds into the floor. Map ----- +----------------------------------------------------+ | ????????????????????? # ???????????# | | ???????????????????? # ???????????+ | | ???????????????????##?# ???????????# | | ??????????????????????# ???????????# | | ??????????????????????# ???????????### ######## | | ??????????????????????# ?????????????# ## | | ??????????????????????# ?????????????## ## | | ?????????????????????? ?????????????# # " | | ??????????????????????# ?????????????# " + """ | | ??????????????????????# ?????????????# # """ | | ??????????????????????? ?????????????##### " | | ???????????????????????????????????????????# | | ???????????????????????????????????????????# | | ???????????????????????????????????????????# | | ???????????????????????????????????????????####### | | ?????????????????????????????????????????????????? | | ?????????????????????????????????????????????????? | | ?????????????????????????????????????????????????? | | ?????????????????????????????????????????????????? | | ?????????????????????????????????????????????????? | | ???????????????????#""""""""""#??????????######### | | ???????????????????# #??????????# = | | ???????????????????# #??????????# | | ???????????????????# #??????????# """S"" | | ???????????????????# "" #??????????# """ "" | | ???????????????????# "@ #??????????# | | ???????????????????# #??????????# | | ???????????????????# #?########## """" | | ???????????????????# #?# # """" | | ??????????????????## ### # """" | | ??????????????????# ##"""[ # """" | | ??????????????????##"" ###""F[ # """" | | ???????????????????#"" #?#""[[ # | | ???????????????????#"" #?#""" # | | ???????????????????#T #?#""" ""####### | | ???????????????????# " #?# ###?????? | | ???????????????????#"" #?# #???????? | | ?????????????????###"" #####+###########??? | | ??????????# | | ??????????# | | ??????????####+#######;###################+####### | | ?????????????????????###?????????????????????????? | | ?????????????????????????????????????????????????? | | ?????????????????????????????????????????????????? | | ?????????????????????????????????????????????????? | | ?????????????????????????????????????????????????? | | ?????????????????????????????????????????????????? | | ???????????????????????????????????????????!?????? | | ?????????????????????????????????????????????????? | | ?????????????????????????????????????????????????? | +----------------------------------------------------+ Best States ------------- Heat Dissipation 63 Coolant Potential 120 Energy Generation 79 Energy Capacity 1830 Matter Stores 1000 Matter Capacity 1000 Sight Range 29 Terrain Scan Density 10 Armor Coverage 1225 Resistance: KI 30 Resistance: TH 22 Weapon Cycling 15 Phase Shifting 20 Evasion (%) 60 Targeting Accuracy 13 Target Analysis 8 Core Analysis 8 Recoil Reduction 6 Particle Charging 20 Kinecelleration 40 Salvage Targeting 4 Offensive Hacking 26 Defensive Hacking 10 Item Schematics ----------------- Hcp. Storage Unit | -10/Materials | Hacked Combat Drone Bay | -6/Data Miner | Free Lgt. Regenerative Plating | -6/Data Miner | Free Enh. Flexi-carbon Leg | -6/Data Miner | Free Exp. Heat Sink | -6/Data Miner | Free Ionic Axe | -6/Data Miner | Free Imp. Antigrav System | -6/Data Miner | Free Quantum Capacitor | -6/Data Miner | Free Matter Neutralizer | -6/Data Miner | Free Thunder Leg | -6/Data Miner | Free Imp. Heavy Treads | -6/Data Miner | Free Adv. Datajack | -6/Data Miner | Free Adv. Remote Force Field | -6/Data Miner | Free Exp. Cesium-ion Thruster | -3/Testing | Archive Robot Schematics ------------------ L-41 Fighter | -6/Data Miner | Free S-27 Virus | -6/Data Miner | Free Y-64 Sentinel | -6/Data Miner | Free B-60 Warrior | -6/Data Miner | Free G-67 Veteran | -6/Data Miner | Free R-10 Processor | -6/Data Miner | Free K-01 Serf | -3/Testing | Archive A-27 Freighter | -3/Testing | Archive Fabricated ------------ Nothing Repaired ---------- Hvy. Assault Cannon | 42% | -9/Materials Lgt. Treads | 55% | -8/Materials Lgt. Treads | 68% | -8/Materials Hvy. Assault Cannon | 62% | -8/Storage Studied --------- Lgt. Treads | -9/Materials | Hacked Autogun | -9/Materials | Hacked Hvy. Assault Rifle | -9/Materials | Hacked Hvy. Assault Cannon | -9/Materials | Hacked Com. Wheel | -9/Materials | Hacked Alien Tech Used ----------------- Phase Redirector Core Cannon Achievements -------------- None Challenges ------------ None Game ------ Seed TrackerPhysicsProcessor Manual? 0 Play Time 02:02:42 Cumulative 2322.8 hours Start 2026.09.05 @ 23:23:40 End 2026.09.06 @ 01:24:50 Sessions 1 Manual Loads 0 Difficulty Rogue Special Mode None Game No. 1442 Rogue 1438 Adventurer 4 Explorer 0 Win Type 0 Total 338 Types 253/15/27/11/4/1/6/10/7/4 Lore% 99 Gallery% 96 Achievement% 95 Wizard Run 0 Options --------- Layout 2 ASCII 0 Keyboard 1 Movement Vi Keybinds 0 Fullscreen 0 Font 24/Terminus Map View 59x48 Zoom Use 0% Tactical HUD 1 Map Filters NONE Filters NONE Steam 1 RUN: 7ed66d53-651c-4a2c-b0b9-4b84cf575ee8